bitfinex/quotes_ETHUSD_20240824
["timestamp","ask_amount","ask_price","bid_price","bid_amount"]
[1724459706333,1.89082267,2759.8,2759.6,0.55]
[1724459706533,1.89082267,2759.8,2759.6,1.47206959]
[1724459706968,1.89082267,2759.8,2759.6,5.09574959]
[1724459707311,1.89082267,2759.9,2759.7,2.3343]
[1724459708448,5.89196721,2760.2,2759.7,2.3343]
[1724459708449,1.89082267,2760.0,2759.7,2.3343]
[1724459709375,1.88967281,2759.9,2759.7,2.3343]
[1724459709575,1.88967281,2760.0,2759.8,1.29299796]
[1724459709874,1.88967281,2760.0,2759.8,4.91644796]
[1724459710073,1.88967281,2760.0,2759.8,1.29299796]
[1724459710268,1.88967281,2760.0,2759.8,0.55]
[1724459710865,1.88967281,2760.0,2759.7,0.55]
[1724459711038,1.1334455,2759.8,2759.7,0.55]
[1724459712138,1.1334455,2759.9,2759.7,4.17358]
[1724459712536,0.75561394,2759.8,2759.7,4.17358]
[1724459712830,0.75561394,2759.8,2759.7,1.79765155]
[1724459713031,0.75561394,2759.8,2759.7,5.42123155]
[1724459713565,0.75561394,2759.8,2759.7,7.75553155]
[1724459714028,0.75561394,2759.9,2759.7,7.75553155]
[1724459714943,0.75561394,2759.9,2759.8,3.62345]
[1724459715130,0.75561394,2759.9,2759.8,5.31135116]
[1724459716745,0.75561394,2760.0,2759.8,5.31135116]
[1724459716945,0.75561394,2760.0,2759.9,0.55]
[1724459717278,0.75561394,2760.1,2759.9,0.55]
[1724459717581,0.75561394,2760.2,2760.0,4.15431512]
[1724459717929,0.75561394,2760.1,2760.0,4.15431512]
[1724459718143,0.75561394,2760.2,2760.0,4.70431512]
[1724459718460,0.75561394,2760.2,2760.0,6.58101512]
[1724459719445,1.1334455,2760.4,2760.0,6.58101512]
[1724459719446,0.75561394,2760.3,2760.0,6.58101512]
[1724459719852,0.75561394,2760.3,2760.0,6.65339119]
[1724459720054,0.75561394,2760.3,2760.1,3.62302]
[1724459720637,0.75561394,2760.3,2760.0,6.58092512]
[1724459720838,0.75561394,2760.1,2759.9,0.55]
[1724459722180,3.12791394,2760.2,2759.9,0.55]
[1724459722794,0.75561394,2760.0,2759.5,3.8496559]
[1724459723082,0.75561394,2760.0,2759.8,0.55]
[1724459723397,0.75561394,2760.0,2759.7,0.55]
[1724459723890,0.75561394,2760.0,2759.7,4.17356]
[1724459724589,0.75561394,2760.0,2759.7,0.55]
[1724459726856,3.62384,2759.6,2758.9,9.8667]
[1724459727052,3.12722547,2759.5,2758.9,3.62462]
[1724459727259,0.75492547,2759.4,2758.9,3.62462]
[1724459727579,0.75492547,2759.4,2758.8,3.62472]
[1724459727884,0.75492547,2759.3,2758.8,7.24938]
[1724459728041,0.75492547,2759.3,2758.9,3.62461]
[1724459728381,0.75492547,2759.2,2758.9,3.62461]
[1724459728691,0.75492547,2759.3,2758.9,3.62461]
[1724459728840,0.75492547,2759.2,2758.9,3.62461]
[1724459729380,0.75492547,2759.2,2758.6,3.62497]
[1724459729381,2.3723,2759.1,2758.6,3.62497]
[1724459729583,0.75492547,2759.0,2758.6,3.62497]
[1724459729889,0.75492547,2759.0,2758.6,4.592661]
[1724459730505,0.75492547,2759.0,2758.6,4.592631]
[1724459730887,0.75492547,2759.0,2758.7,3.62489]
[1724459731655,0.09145789,2758.9,2758.7,3.62489]
[1724459733960,0.09145789,2758.9,2758.8,3.62476]
[1724459734166,0.09145789,2758.9,2758.7,3.62489]
[1724459734390,0.09145789,2758.9,2758.7,4.592559]
[1724459734604,0.75492547,2759.0,2758.7,4.592559]
[1724459734802,0.09060452,2758.8,2758.7,4.592559]
[1724459735261,0.75492547,2759.0,2758.7,4.592559]
[1724459735468,0.09065312,2758.9,2758.7,4.592559]
[1724459736109,0.09065312,2758.9,2758.8,3.62476]
[1724459736406,0.09065312,2758.9,2758.7,4.592559]
[1724459737773,0.09065312,2758.9,2758.8,8.33126612]
[1724459738193,0.75492547,2759.2,2759.0,3.62441]
[1724459738584,0.75492547,2759.3,2759.0,3.62441]
[1724459738782,0.75492547,2759.2,2759.0,7.24882]
[1724459738996,0.84569797,2759.2,2759.0,7.2488]
[1724459739203,0.84569797,2759.2,2759.0,3.62439]
[1724459739399,0.0907725,2759.2,2759.0,3.62439]
[1724459739583,0.84569797,2759.2,2759.0,3.62439]
[1724459739788,0.75492547,2759.2,2758.8,8.2586559]
[1724459739995,0.75492547,2759.2,2758.8,4.6339059]
[1724459739996,0.84564938,2759.1,2758.8,4.6339059]
[1724459741126,0.84564938,2759.1,2758.8,8.2585759]
[1724459741336,0.84564938,2759.1,2758.9,4.54725449]
[1724459741470,0.84564938,2759.1,2758.8,4.6339059]
[1724459741873,0.09072391,2759.1,2758.8,4.6339059]
[1724459742481,0.84564938,2759.1,2758.8,4.6339059]
[1724459743221,0.09072391,2759.1,2758.8,4.6339059]
[1724459743803,0.09072391,2759.1,2758.8,8.2585859]
[1724459743980,0.09072391,2759.1,2758.9,3.62462]
[1724459744178,0.09072391,2759.1,2758.9,4.45047259]
[1724459745117,0.75492547,2759.3,2758.9,4.45047259]
[1724459745411,0.09067532,2759.0,2758.9,4.45047259]
[1724459745612,0.75492547,2759.3,2758.9,5.00047259]
[1724459745815,0.09067532,2759.0,2758.9,4.45047259]
[1724459746014,0.75492547,2759.3,2758.9,5.00047259]
[1724459746214,0.09067532,2759.0,2758.9,4.45047259]
[1724459746515,0.09067532,2759.0,2758.9,4.17462]
[1724459746715,0.75492547,2759.2,2758.9,4.17462]
[1724459746878,0.09067532,2759.0,2758.9,4.17462]
[1724459747079,0.75492547,2759.2,2758.9,4.17462]
[1724459747281,0.09072391,2759.1,2758.9,4.17462]
[1724459747489,0.09072391,2759.1,2758.9,5.00049659]
[1724459748518,0.84564938,2759.1,2758.9,0.55]
[1724459748879,0.09072391,2759.1,2758.8,0.55]
[1724459750387,0.09072391,2759.1,2758.5,3.62511]
[1724459750388,2.3259,2759.0,2758.5,3.62511]
[1724459750595,2.3259,2759.0,2758.6,3.55]
[1724459751425,2.3259,2759.0,2758.6,7.175]
[1724459752427,0.09061352,2758.9,2758.6,7.175]
[1724459753136,0.09061352,2758.9,2758.6,8.255007]
[1724459753743,0.09061352,2758.9,2758.7,3.62488]
[1724459754333,0.09061352,2758.9,2758.8,7.24952]
[1724459754693,0.75492547,2759.2,2758.9,3.62457]
[1724459754895,0.75492547,2759.2,2758.8,3.62476]
[1724459755109,0.75492547,2759.2,2758.9,0.55]
[1724459755508,0.75492547,2759.2,2758.8,3.62476]
[1724459755700,0.75492547,2759.1,2758.8,3.62476]
[1724459755900,0.84565818,2759.1,2758.8,3.62476]
[1724459756104,0.09073271,2759.1,2758.8,3.62476]
[1724459760442,0.09073271,2759.1,2758.8,3.62469]
[1724459760748,0.09073271,2759.1,2758.9,3.62461]
[1724459761306,0.09073271,2759.1,2759.0,16.8724]
[1724459761712,0.75492547,2759.7,2759.5,3.62374]
[1724459761910,0.75492547,2759.7,2759.6,3.62371]
[1724459762147,0.75492547,2759.7,2759.5,3.62374]
[1724459762310,0.75492547,2759.7,2759.5,3.62373]
[1724459764648,0.75492547,2759.7,2759.6,0.55]
[1724459764855,0.75492547,2759.7,2759.6,4.17371]
[1724459765220,0.84290632,2759.7,2759.6,7.79742]
[1724459765558,0.08798085,2759.7,2759.6,7.79742]
[1724459765761,0.08798085,2759.7,2759.6,10.24632]
[1724459765967,0.75492547,2759.9,2759.8,3.62345]
[1724459766272,0.75492547,2759.9,2759.8,4.17345]
[1724459767238,1.88837097,2760.0,2759.8,4.17345]
[1724459767647,0.75492547,2760.0,2759.8,4.17337]
[1724459768180,1.88837097,2760.1,2760.0,3.62318]
[1724459768386,0.75655463,2760.1,2760.0,4.17318]
[1724459768960,0.84529715,2760.1,2760.0,4.17318]
[1724459769170,0.08874252,2760.1,2760.0,0.55]
[1724459769382,1.22218802,2760.1,2760.0,0.55]
[1724459769544,0.08874252,2760.1,2760.0,0.55]
[1724459769961,1.22218802,2760.1,2760.0,0.55]
[1724459770173,0.08874252,2760.1,2760.0,0.55]
[1724459770388,0.84507283,2760.1,2760.0,0.55]
[1724459770562,0.08874252,2760.1,2760.0,0.55]
[1724459770957,0.84507559,2760.1,2760.0,0.55]
[1724459772748,0.84507559,2760.1,2760.0,4.17318]
[1724459772950,0.84507559,2760.1,2760.0,4.952821]
[1724459773187,0.08874252,2760.1,2760.0,11.024901]
[1724459773704,0.75633307,2760.5,2760.2,3.6229]
[1724459774010,0.75633307,2760.5,2760.2,7.24575]
[1724459774145,0.08905195,2760.4,2760.3,0.73182026]
[1724459774758,0.75633307,2760.6,2760.3,0.73182026]
[1724459775000,0.08910471,2760.4,2760.2,3.62285]
[1724459775209,0.75633307,2760.5,2760.2,3.62285]
[1724459775420,0.08906496,2760.3,2760.2,3.62285]
[1724459775614,0.75633307,2760.6,2760.2,3.62285]
[1724459775818,0.08909573,2760.3,2760.2,3.62285]
[1724459775964,0.75633307,2760.6,2760.2,4.73254636]
[1724459776164,0.08910013,2760.3,2760.2,3.62285]
[1724459776717,0.75633307,2760.6,2760.2,3.62285]
[1724459776915,0.08910013,2760.3,2760.2,3.62285]
[1724459777192,0.75633307,2760.6,2760.2,7.24569]
[1724459777405,0.08910013,2760.3,2760.2,7.24569]
[1724459777611,0.75633307,2760.6,2760.2,4.73250836]
[1724459777792,0.08910013,2760.3,2760.2,4.73250836]
[1724459778121,0.08921006,2760.3,2760.2,4.73250836]
[1724459778409,0.75633307,2760.7,2760.3,3.62277]
[1724459778987,1.32414477,2760.7,2760.3,3.62277]
[1724459779182,1.32414477,2760.7,2760.4,3.62263]
[1724459779570,1.32414477,2760.7,2760.5,3.6225]
[1724459780469,1.32414477,2760.7,2760.5,3.62245]
[1724459780470,0.5678117,2760.7,2760.5,3.62245]
[1724459780664,0.0863651,2760.6,2760.5,3.62245]
[1724459780903,0.75633307,2760.8,2760.5,4.6707594]
[1724459781175,1.1334455,2761.0,2760.5,4.6707594]
[1724459781176,0.08641364,2760.7,2760.6,3.6223]
[1724459781390,0.08641364,2760.7,2760.6,4.1723]
[1724459781589,0.75633307,2760.9,2760.6,4.1723]
[1724459782106,0.08646217,2760.8,2760.6,4.1723]
[1724459783720,0.75633307,2761.0,2760.6,4.1723]
[1724459783926,0.08654111,2760.7,2760.6,4.1723]
[1724459784128,0.75633307,2761.0,2760.6,4.92736094]
[1724459784292,0.08654111,2760.7,2760.6,4.1723]
[1724459784616,0.75633307,2761.0,2760.6,4.1723]
[1724459784830,0.08654111,2760.7,2760.6,4.1723]
[1724459784975,0.75633307,2761.0,2760.6,4.1723]
[1724459785176,0.08659384,2760.7,2760.6,4.1723]
[1724459785477,0.75633307,2761.2,2760.7,3.62222]
[1724459785827,4.37783307,2761.3,2760.8,0.55]
[1724459785989,0.75633307,2761.2,2760.8,0.55]
[1724459788245,0.08687196,2761.1,2760.8,0.55]
[1724459788536,4.37783307,2761.3,2760.8,1.07894819]
[1724459788740,0.08682344,2761.0,2760.8,0.55]
[1724459788903,4.37783307,2761.3,2760.8,0.55]
[1724459789105,0.08683647,2761.2,2760.8,0.55]
[1724459789335,4.37783307,2761.3,2760.8,0.55]
[1724459789633,0.08678795,2761.1,2760.8,0.55]
[1724459789836,0.08683647,2761.2,2760.8,1.07894819]
[1724459790041,0.08673943,2761.0,2760.8,1.07894819]
[1724459790254,4.37783307,2761.3,2760.8,1.07894819]
[1724459790394,0.0866909,2760.9,2760.8,0.55]
[1724459790708,0.0866909,2760.9,2760.5,3.62248]
[1724459790709,5.89532,2761.1,2760.5,7.24489]
[1724459790902,0.08673943,2761.0,2760.6,0.55]
[1724459791632,2.2735,2760.9,2760.4,7.44]
[1724459791834,2.2735,2760.6,2760.0,23.46316]
[1724459792151,2.2735,2760.6,2759.8,5.99446]
[1724459792359,2.2735,2760.4,2759.5,3.62374]
[1724459792501,2.2735,2759.9,2759.4,3.62395]
[1724459792697,3.62363,2759.7,2759.1,3.62431]
[1724459793069,0.08627118,2759.8,2758.7,2.3711]
[1724459793070,3.62397,2759.5,2758.7,2.3711]
[1724459793220,2.2735,2759.4,2758.6,3.62492]
[1724459793552,3.62425,2759.2,2758.6,3.62492]
[1724459793925,0.08591794,2759.1,2758.6,3.62492]
[1724459794281,6.65387307,2759.4,2758.7,3.62485]
[1724459794440,0.076939,2759.0,2758.8,3.62475]
[1724459794647,2.2735,2759.4,2758.9,3.62462]
[1724459794844,0.75633307,2759.5,2759.0,3.62449]
[1724459795065,0.75633307,2759.6,2758.9,3.62462]
[1724459795239,0.75633307,2759.6,2759.0,0.55]
[1724459795574,0.08522977,2759.5,2759.1,0.07248142]
[1724459795740,0.75633307,2759.9,2759.3,3.624]
[1724459795944,0.08465354,2759.4,2759.3,3.624]
[1724459796166,0.75633307,2759.9,2759.3,4.898821]
[1724459796483,0.75633307,2759.9,2759.3,4.348821]
[1724459796642,3.02983307,2760.0,2759.4,3.62394]
[1724459797244,0.75633307,2759.9,2759.4,3.62394]
[1724459797446,3.02983307,2760.0,2759.4,3.62394]
[1724459797848,3.02983307,2760.0,2759.5,0.55]
[1724459798379,0.75633307,2759.9,2759.5,0.55]
[1724459798967,0.08502819,2759.8,2759.5,0.55]
[1724459799151,3.62379,2759.6,2759.0,3.62446]
[1724459799358,3.62379,2759.6,2759.1,3.0]
[1724459799685,0.08503203,2759.5,2759.0,6.62449]
[1724459799884,0.08503203,2759.5,2759.1,0.662449]
[1724459801329,0.08503203,2759.5,2759.1,4.286809]
[1724459801536,0.75633307,2759.7,2759.2,3.62421]
[1724459801736,0.0850806,2759.6,2759.2,3.62421]
[1724459802038,0.0850806,2759.6,2759.2,3.62413]
[1724459802267,4.37981307,2759.8,2759.3,0.4286579]
[1724459802581,0.75633307,2759.7,2759.2,3.62413]
[1724459802781,0.84132588,2759.7,2759.2,3.62413]
[1724459803935,0.08499281,2759.7,2759.2,3.62413]
[1724459804337,0.84132588,2759.7,2759.2,3.62413]
[1724459805487,0.75633307,2759.6,2759.2,3.62413]
[1724459807088,0.08492205,2759.5,2759.2,8.273087]
[1724459807382,0.75633307,2759.7,2759.2,8.273087]
[1724459807589,0.75633307,2759.7,2759.3,3.62409]
[1724459808140,0.75633307,2759.8,2759.1,2.44]
[1724459808390,0.75633307,2759.9,2759.6,3.6236]
[1724459808941,2.277,2759.8,2759.6,3.6236]
[1724459809099,2.277,2759.8,2759.4,3.62393]
[1724459809100,2.277,2759.8,2759.4,7.24779]
[1724459809306,3.03333307,2759.8,2759.5,0.55]
[1724459809486,2.277,2759.8,2759.5,0.55]
[1724459809814,0.08504013,2759.7,2759.5,0.55]
[1724459809953,3.03333307,2759.8,2759.5,0.55]
[1724459810153,0.08504013,2759.7,2759.5,0.55]
[1724459810401,3.03333307,2759.8,2759.5,0.55]
[1724459810604,0.08499156,2759.6,2759.5,0.55]
[1724459810898,3.03333307,2759.8,2759.5,0.55]
[1724459811100,0.08499156,2759.6,2759.5,4.17384]
[1724459811282,3.03333307,2759.8,2759.5,4.17384]
[1724459811283,0.75633307,2759.8,2759.5,4.591224]
[1724459811599,1.1334455,2759.9,2759.5,4.591224]
[1724459811600,0.75633307,2759.9,2759.5,4.591224]
[1724459811797,0.08504013,2759.7,2759.5,4.17384]
[1724459812095,0.75633307,2759.9,2759.5,4.17384]
[1724459812308,0.08501796,2759.6,2759.5,4.17384]
[1724459812526,0.75633307,2759.9,2759.6,3.62369]
[1724459813539,0.08224749,2759.8,2759.5,0.55]
[1724459813692,0.08224749,2759.8,2759.5,1.329778]
[1724459814188,0.08224749,2759.8,2759.5,4.953598]
[1724459814994,0.08224749,2759.8,2759.5,1.329778]
[1724459815199,0.08224749,2759.8,2759.5,0.55]
[1724459816593,0.08224749,2759.8,2759.2,3.62416]
[1724459816942,3.62392,2759.5,2759.1,7.44]
[1724459817145,7.24785,2759.5,2759.1,7.44]
[1724459817327,0.08206199,2759.4,2759.1,7.44]
[1724459818139,6.68858307,2759.7,2759.1,9.083478]
[1724459818551,0.08215914,2759.6,2759.3,3.62399]
[1724459818700,0.75633307,2759.8,2759.3,5.99429]
[1724459819051,0.08219451,2759.7,2759.4,3.62397]
[1724459819260,0.75633307,2759.8,2759.4,3.62397]
[1724459819551,0.08204478,2759.6,2759.4,3.62397]
[1724459819847,0.0819962,2759.5,2759.4,4.640813]
[1724459820057,0.75633307,2759.8,2759.4,4.640813]
[1724459820247,0.0819962,2759.5,2759.4,3.62397]
[1724459820448,0.75633307,2759.8,2759.4,3.62397]
[1724459820595,0.0819962,2759.5,2759.4,3.62397]
[1724459820796,0.75633307,2759.8,2759.4,3.62397]
[1724459821022,0.0819962,2759.5,2759.4,3.62397]
[1724459821230,0.75633307,2759.8,2759.4,4.640813]
[1724459821445,0.0819962,2759.5,2759.4,3.62397]
[1724459821613,0.75633307,2759.8,2759.4,3.62397]
[1724459821816,0.0819962,2759.5,2759.4,3.62397]
[1724459822149,0.75633307,2759.8,2759.4,3.62397]
[1724459822303,0.0819962,2759.5,2759.4,3.62397]
[1724459822502,0.75633307,2759.9,2759.5,3.62383]
[1724459822741,0.75633307,2759.9,2759.6,3.62362]
[1724459823045,0.75633307,2760.1,2759.6,3.62362]
[1724459823915,7.0735855,2760.2,2759.6,3.62362]
[1724459823916,0.75633307,2760.0,2759.6,3.62362]
[1724459824167,0.08219488,2759.9,2759.6,3.62362]
[1724459824396,0.08219488,2759.9,2759.6,4.4500573]
[1724459825470,0.08219488,2759.9,2759.7,3.62356]
[1724459825865,0.08219488,2759.9,2759.8,3.62345]
[1724459826286,0.08219488,2759.9,2759.8,7.31936114]
[1724459826565,0.75633307,2760.4,2760.0,3.62317]
[1724459826919,0.75633307,2760.5,2760.2,3.62284]
[1724459827064,0.08256941,2760.3,2760.2,3.62284]
[1724459827263,0.75633307,2760.7,2760.2,7.24567]
[1724459827458,0.07692606,2760.3,2760.2,7.24567]
[1724459827666,0.75633307,2760.6,2760.2,8.28162781]
[1724459827875,0.07692606,2760.3,2760.2,3.62283]
[1724459828130,0.75633307,2760.7,2760.2,7.24566]
[1724459828313,0.75633307,2760.7,2760.3,3.62279]
[1724459828530,0.75633307,2760.7,2760.4,3.62258]
[1724459828812,0.75633307,2760.8,2760.4,3.62258]
[1724459829127,0.75633307,2760.7,2760.2,3.62281]
[1724459829292,0.75633307,2760.6,2760.2,3.6229]
[1724459829492,0.75633307,2760.6,2760.1,2.382]
[1724459829493,0.75633307,2760.8,2760.7,3.62226]
[1724459829732,0.75633307,2761.0,2760.7,3.62226]
[1724459830228,1.1334455,2761.1,2760.7,3.62226]
[1724459830229,0.75633307,2761.1,2760.8,3.62203]
[1724459830441,0.75633307,2761.1,2760.9,0.724429]
[1724459831077,0.75633307,2761.1,2760.8,3.62203]
[1724459831480,0.07754185,2761.0,2760.8,3.62203]
[1724459832927,0.07754185,2761.0,2760.6,3.62237]
[1724459833125,3.69942185,2761.0,2760.3,9.00478]
[1724459833346,0.07754185,2761.0,2760.4,4.17257]
[1724459833497,3.62215,2760.8,2760.3,3.0]
[1724459833700,0.75481334,2761.0,2759.9,12.46]
[1724459833701,2.3172,2760.7,2759.9,3.62328]
[1724459833905,3.6225,2760.6,2759.9,3.62328]
[1724459834298,0.07748465,2760.5,2759.9,3.62328]
[1724459834894,0.07748465,2760.5,2760.0,3.62316]
[1724459835499,5.93948,2760.7,2760.0,3.62316]
[1724459835802,0.593948,2760.6,2759.9,3.62328]
[1724459836001,0.67148119,2760.6,2759.9,3.62328]
[1724459836304,0.67148119,2760.6,2760.0,3.62317]
[1724459836934,4.29390119,2760.6,2759.8,3.62344]
[1724459837143,0.67148119,2760.6,2759.5,3.62381]
[1724459837290,3.62289,2760.3,2759.5,3.62377]
[1724459837487,3.62302,2760.2,2759.4,3.62396]
[1724459837745,2.3233,2760.1,2759.2,4.38450817]
[1724459837929,3.62333,2759.9,2759.3,3.62409]
[1724459838304,0.07697341,2759.8,2759.2,4.38447817]
[1724459839188,0.07697341,2759.8,2759.3,3.62408]
[1724459839399,0.07697341,2759.8,2759.4,3.62395]
[1724459839600,5.94637,2760.1,2759.4,3.62395]
[1724459839806,0.07665671,2759.7,2759.4,3.62395]
[1724459840007,5.94637,2760.1,2759.4,3.62395]
[1724459840208,0.07660814,2759.6,2759.4,3.62395]
[1724459840443,6.903289,2760.1,2759.4,3.62395]
[1724459840609,0.07654636,2759.5,2759.4,3.62395]
[1724459840811,6.903289,2760.1,2759.4,3.62395]
[1724459841108,0.07654636,2759.5,2759.4,3.62395]
[1724459841293,0.75633307,2759.5,2759.4,3.62395]
[1724459841492,0.07654636,2759.5,2759.4,3.62395]
[1724459842313,0.07654636,2759.5,2759.4,4.348763]
[1724459842529,0.07654636,2759.5,2759.4,7.79792]
[1724459842835,0.75633307,2759.8,2759.7,3.62358]
[1724459843039,1.1334455,2759.8,2759.7,3.62358]
[1724459843547,1.1334455,2759.9,2759.7,3.62358]
[1724459843708,1.1334455,2759.8,2759.7,3.62358]
[1724459844591,1.1334455,2759.8,2759.5,7.24746]
[1724459844896,1.51091223,2760.0,2759.3,3.624]
[1724459844897,0.75781909,2759.6,2759.3,3.624]
[1724459845318,0.75781909,2759.6,2759.5,3.62384]
[1724459846139,0.83442283,2759.6,2759.5,3.62384]
[1724459847836,0.07660374,2759.6,2759.5,13.15872]
[1724459848003,0.07660374,2759.6,2759.5,13.08488]
[1724459848203,0.75781909,2759.9,2759.8,3.62345]
[1724459848424,1.21017294,2759.9,2759.6,3.62364]
[1724459848750,1.1334455,2759.8,2759.4,3.62393]
[1724459849058,0.75775672,2759.6,2759.4,3.62393]
[1724459849353,1.21042762,2759.7,2759.4,3.62393]
[1724459849354,0.75775672,2759.5,2759.4,3.62393]
[1724459849646,0.07688497,2759.5,2759.4,3.62393]
[1724459853855,0.83464169,2759.5,2759.4,3.62393]
[1724459854493,0.83464169,2759.5,2758.9,16.35176]
[1724459854494,0.83464169,2759.5,2759.2,3.62411]
[1724459854696,0.83464169,2759.5,2759.3,0.362411]
[1724459855194,0.83464169,2759.5,2759.3,3.62401]
[1724459857067,0.83464169,2759.5,2759.3,7.24804]
[1724459859416,0.83464169,2759.5,2759.4,3.62397]
[1724459859817,0.07688497,2759.5,2759.4,9.71174]
[1724459860218,0.07688497,2759.5,2759.4,10.682914]
[1724459860419,0.07688497,2759.5,2759.4,14.232914]
[1724459860573,1.1334455,2759.9,2759.7,3.62358]
[1724459860574,0.75775672,2759.8,2759.7,3.62358]
[1724459860773,0.83463792,2759.8,2759.7,7.24707]
[1724459861297,0.83463792,2759.8,2759.7,9.71087]
[1724459861298,0.0768812,2759.8,2759.7,9.71087]
[1724459861502,0.0768812,2759.8,2759.7,14.594324]
[1724459861808,0.75775672,2760.1,2760.0,3.62318]
[1724459862120,0.07702689,2760.1,2760.0,7.24636]
[1724459863270,0.75775672,2760.3,2760.0,7.24636]
[1724459863271,0.75775672,2760.3,2760.2,3.62292]
[1724459863718,0.83488071,2760.3,2760.2,3.62292]
[1724459865187,0.83488071,2760.3,2760.2,4.34753]
[1724459865389,0.07712399,2760.3,2760.2,9.70964]
[1724459866129,0.07712399,2760.3,2760.2,3.62292]
[1724459866274,0.07712399,2760.3,2760.1,3.62296]
[1724459866275,0.83488071,2760.3,2760.1,3.62296]
[1724459866478,0.83488071,2760.3,2760.1,3.62297]
[1724459866479,0.75775672,2760.2,2760.1,3.62297]
[1724459866791,0.83509593,2760.2,2760.1,3.62297]
[1724459867005,0.07733921,2760.2,2760.1,3.62297]
[1724459867306,1.1334455,2760.4,2760.2,3.62292]
[1724459867505,0.75818306,2760.3,2760.2,3.62292]
[1724459868790,0.75818306,2760.3,2760.2,4.347522]
[1724459868992,1.1334455,2760.6,2760.4,3.62266]
[1724459869416,0.75812367,2760.5,2760.4,3.62266]
[1724459869897,0.75812921,2760.5,2760.4,3.62266]
[1724459870510,1.1334455,2760.6,2760.4,3.62266]
[1724459870712,1.1334455,2760.5,2760.2,3.62285]
[1724459871035,0.75806286,2760.4,2760.2,3.6229]
[1724459871191,0.75806286,2760.4,2760.2,4.347488]
[1724459871388,0.07739216,2760.3,2760.2,4.347488]
[1724459874671,0.75806286,2760.4,2760.3,3.62279]
[1724459875654,0.75806286,2760.4,2760.2,7.970328]
[1724459875839,0.75806286,2760.4,2760.2,3.62284]
[1724459876043,3.4604455,2760.5,2760.3,3.62279]
[1724459876246,0.75790302,2760.4,2760.3,3.62279]
[1724459878043,0.83274721,2760.4,2760.3,3.62279]
[1724459879094,0.83274721,2760.4,2760.3,7.24558]
[1724459879307,0.07484419,2760.4,2760.3,7.970138]
[1724459879790,0.83274721,2760.4,2760.1,3.62296]
[1724459879957,0.75793113,2760.3,2760.1,3.62296]
[1724459880368,0.07472952,2760.2,2760.1,3.62296]
[1724459880605,0.07472952,2760.2,2760.1,6.62296]
[1724459880789,0.75793113,2760.3,2760.2,3.62292]
[1724459881747,0.83299934,2760.3,2760.2,3.62292]
[1724459881965,0.07506821,2760.3,2760.2,8.270428]
[1724459885239,0.75793113,2760.5,2760.3,3.6227]
[1724459886314,0.75793113,2760.5,2760.4,3.62266]
[1724459886637,1.1334455,2760.6,2760.4,3.62266]
[1724459887003,0.75745316,2760.5,2760.4,3.62266]
[1724459887336,1.1334455,2760.5,2760.4,3.62266]
[1724459888033,0.75740687,2760.5,2760.4,3.62266]
[1724459889039,0.75740687,2760.5,2760.4,7.969878]
[1724459889040,0.07516531,2760.5,2760.4,7.969878]
[1724459889254,0.07516531,2760.5,2760.4,10.349578]
[1724459889415,0.07516531,2760.5,2760.4,13.899578]
[1724459889602,0.75740687,2760.8,2760.7,3.62214]
[1724459889950,0.83282323,2760.8,2760.7,7.2443]
[1724459890114,0.83282323,2760.8,2760.7,3.62214]
[1724459890941,1.96626873,2760.8,2760.6,3.62227]
[1724459891112,1.20886186,2760.8,2760.6,3.62227]
[1724459891314,0.07541636,2760.8,2760.7,3.62226]
[1724459892946,0.07541636,2760.8,2760.7,9.62422]
[1724459893442,0.7574217,2761.0,2760.8,3.62204]
[1724459893934,0.7574217,2761.0,2760.9,3.622]
[1724459894942,0.7574217,2761.0,2760.7,6.00196]
[1724459894943,1.1334455,2761.0,2760.7,3.62226]
[1724459895096,0.75709151,2760.8,2760.7,3.62226]
[1724459895298,0.75709151,2760.8,2760.6,3.62239]
[1724459895899,0.75709151,2760.8,2760.5,7.24489]
[1724459896094,0.07319169,2760.7,2760.5,7.24489]
[1724459896299,0.07319169,2760.7,2760.6,3.6224]
[1724459896500,0.75709151,2760.8,2760.6,3.6224]
[1724459896736,0.07319169,2760.7,2760.6,3.6224]
[1724459896941,0.07319169,2760.7,2760.5,3.62242]
[1724459897097,0.75709151,2760.7,2760.5,3.62242]
[1724459897296,0.75709151,2760.7,2760.5,4.6500878]
[1724459897297,0.07314316,2760.6,2760.5,4.6500878]
[1724459897539,0.07314316,2760.6,2760.5,7.6500878]
[1724459898224,0.75709151,2760.8,2760.6,3.62237]
[1724459898399,0.07319169,2760.7,2760.6,3.62237]
[1724459898600,0.75709151,2760.9,2760.6,3.62237]
[1724459898823,0.07319629,2760.8,2760.6,7.24474]
[1724459899036,0.8302878,2760.8,2760.7,3.62226]
[1724459899240,0.07319629,2760.8,2760.7,3.62226]
[1724459899568,0.8302878,2760.8,2760.6,3.6223]
[1724459900057,0.07319629,2760.8,2760.7,7.24452]
[1724459900550,0.07319629,2760.8,2760.7,9.73372]
[1724459901155,0.75778564,2761.0,2760.9,3.622]
[1724459901519,0.7578627,2761.0,2760.9,3.622]
[1724459901720,1.1334455,2761.1,2760.9,3.622]
[1724459902313,0.75764497,2761.0,2760.9,3.622]
[1724459902517,1.1334455,2761.1,2760.9,3.622]
[1724459903312,0.07093277,2761.0,2760.9,3.622]
[1724459903517,1.20437827,2761.0,2760.9,3.622]
[1724459905327,0.07093277,2761.0,2760.9,3.622]
[1724459906556,1.20437827,2761.0,2760.9,3.622]
[1724459907069,0.07093277,2761.0,2760.9,3.622]
[1724459907933,0.82933141,2761.0,2760.9,3.622]
[1724459908878,0.82933141,2761.0,2760.9,8.767331]
[1724459909037,0.07093277,2761.0,2760.9,17.878531]
[1724459909243,0.75839864,2761.3,2761.2,7.24322]
[1724459909440,1.1334455,2761.5,2761.3,3.62148]
[1724459909441,0.75839864,2761.4,2761.3,3.62148]
[1724459909758,0.75839864,2761.4,2761.3,4.645789]
[1724459909759,0.82258237,2761.4,2761.3,4.645789]
[1724459910120,0.75839864,2761.4,2761.3,8.267269]
[1724459910324,0.75839864,2761.5,2761.4,7.2427]
[1724459910637,0.75839864,2761.6,2761.5,7.24244]
[1724459910824,0.75839864,2761.7,2761.6,7.24216]
[1724459911469,0.75839864,2761.7,2761.3,4.063509]
[1724459911470,0.75787403,2761.7,2761.5,3.62116]